bitfinex/quotes_BTCUSD_20250917
["timestamp","ask_amount","ask_price","bid_price","bid_amount"]
[1758098777120,0.17123031,116870.0,116860.0,0.44648495]
[1758098777561,0.0001,116870.0,116860.0,0.44648495]
[1758098778718,0.17123031,116870.0,116860.0,0.0001]
[1758098778936,0.17123031,116870.0,116860.0,0.44640495]
[1758098779849,0.17123031,116870.0,116860.0,0.17124495]
[1758098780016,0.17123031,116870.0,116860.0,0.44640495]
[1758098780735,0.0001,116870.0,116860.0,0.44640495]
[1758098783665,0.0001,116870.0,116860.0,0.17124495]
[1758098783869,0.0001,116870.0,116860.0,0.44636495]
[1758098785478,0.0001,116870.0,116860.0,0.17124495]
[1758098785695,0.0001,116870.0,116860.0,0.44636495]
[1758098786887,0.17123031,116870.0,116860.0,0.17124495]
[1758098787320,0.17123031,116870.0,116860.0,0.0001]
[1758098787650,0.17123031,116870.0,116860.0,0.27518]
[1758098789217,0.17123031,116870.0,116860.0,0.0001]
[1758098789434,0.17123031,116870.0,116860.0,0.27518]
[1758098790908,0.62140844,116870.0,116860.0,0.0001]
[1758098791117,0.60187278,116870.0,116860.0,0.0001]
[1758098791830,0.60187278,116870.0,116860.0,0.24454]
[1758098792152,0.25649998,116870.0,116860.0,0.0001]
[1758098792354,0.60187278,116870.0,116860.0,0.0001]
[1758098792586,0.60187278,116870.0,116860.0,0.25142]
[1758098793217,0.25649998,116870.0,116860.0,0.25142]
[1758098793410,0.60187278,116870.0,116860.0,0.25142]
[1758098793762,0.60187278,116870.0,116860.0,0.0001]
[1758098793970,0.60187278,116870.0,116860.0,0.27518]
[1758098795308,0.25649998,116870.0,116860.0,0.27518]
[1758098795492,0.60187278,116870.0,116860.0,0.27518]
[1758098797440,0.60187278,116870.0,116860.0,0.0001]
[1758098797666,0.60187278,116870.0,116860.0,0.27514]
[1758098797837,0.25649998,116870.0,116860.0,0.27514]
[1758098798063,0.60187278,116870.0,116860.0,0.27514]
[1758098798263,0.60187278,116870.0,116860.0,0.0001]
[1758098798400,0.60187278,116870.0,116860.0,0.27514]
[1758098798628,0.60187278,116870.0,116860.0,0.0001]
[1758098798840,0.60187278,116870.0,116860.0,0.27514]
[1758098799050,0.25649998,116870.0,116860.0,0.27514]
[1758098799267,0.60187278,116870.0,116860.0,0.27514]
[1758098799739,0.60187278,116870.0,116860.0,0.0001]
[1758098799899,0.60187278,116870.0,116860.0,0.27514]
[1758098801998,0.60187278,116870.0,116860.0,0.2751]
[1758098802600,0.25649998,116870.0,116860.0,0.2751]
[1758098802825,0.60187278,116870.0,116860.0,0.2751]
[1758098803802,0.25649998,116870.0,116860.0,0.2751]
[1758098804055,0.60187278,116870.0,116860.0,0.2751]
[1758098805159,0.60187278,116870.0,116860.0,0.0001]
[1758098805361,0.60187278,116870.0,116860.0,0.2751]
[1758098806023,0.60187278,116870.0,116860.0,0.0001]
[1758098806279,0.60187278,116870.0,116860.0,0.2751]
[1758098809700,0.60187278,116870.0,116860.0,0.27506]
[1758098809884,0.56347526,116870.0,116860.0,0.27506]
[1758098810739,0.25649998,116870.0,116860.0,0.27506]
[1758098810953,0.56347526,116870.0,116860.0,0.0001]
[1758098811164,0.56347526,116870.0,116860.0,0.27506]
[1758098812498,0.56347526,116870.0,116860.0,0.0001]
[1758098812848,0.56347526,116870.0,116860.0,0.27506]
[1758098813388,0.56347526,116870.0,116860.0,0.0001]
[1758098813591,0.56347526,116870.0,116860.0,0.08018]
[1758098814493,0.56347526,116870.0,116860.0,0.27502]
[1758098816422,0.25649998,116870.0,116860.0,0.0001]
[1758098816634,0.25649998,116870.0,116860.0,0.27502]
[1758098816838,0.56347526,116870.0,116860.0,0.27502]
[1758098817388,0.56347526,116870.0,116860.0,0.0001]
[1758098817601,0.59362716,116870.0,116860.0,0.27502]
[1758098817813,0.59362716,116870.0,116860.0,0.27498]
[1758098818509,0.59362716,116870.0,116860.0,0.0001]
[1758098818710,0.67889683,116870.0,116860.0,0.09946]
[1758098818991,0.61933618,116870.0,116860.0,0.09946]
[1758098819588,0.61933618,116870.0,116860.0,0.0001]
[1758098819919,0.61933618,116870.0,116860.0,0.27498]
[1758098821343,0.3123609,116870.0,116860.0,0.27498]
[1758098821569,0.61933618,116870.0,116860.0,0.27498]
[1758098822042,0.61938749,116870.0,116860.0,0.27498]
[1758098822983,0.3123609,116870.0,116860.0,0.27498]
[1758098823409,0.61938749,116870.0,116860.0,0.27498]
[1758098823626,0.61938749,116870.0,116860.0,0.0001]
[1758098824067,0.3123609,116870.0,116860.0,0.0991]
[1758098824278,0.61938749,116870.0,116860.0,0.0991]
[1758098825275,0.3123609,116870.0,116860.0,0.0991]
[1758098825465,0.61938749,116870.0,116860.0,0.0991]
[1758098831024,0.61938749,116870.0,116860.0,0.0001]
[1758098831230,0.61938749,116870.0,116860.0,0.24286]
[1758098831660,0.3123609,116870.0,116860.0,0.24286]
[1758098831899,0.61938749,116870.0,116860.0,0.24286]
[1758098832262,0.61938749,116870.0,116860.0,0.0001]
[1758098832432,0.61938749,116870.0,116860.0,0.2749]
[1758098833028,0.282209,116870.0,116860.0,0.2749]
[1758098833888,0.282209,116870.0,116860.0,0.0001]
[1758098834063,0.282209,116870.0,116860.0,0.27486]
[1758098836560,0.19693933,116870.0,116860.0,0.27486]
[1758098836777,0.17123031,116870.0,116860.0,0.27486]
[1758098836984,0.17123031,116870.0,116860.0,0.75303154]
[1758098837427,0.17123031,116870.0,116860.0,0.75299154]
[1758098837876,0.0001,116870.0,116860.0,0.75299154]
[1758098838527,0.0001,116870.0,116860.0,0.44596495]
[1758098838742,0.0001,116870.0,116860.0,0.7786944]
[1758098839244,0.0001,116870.0,116860.0,0.5039744]
[1758098839466,0.17121722,116880.0,116860.0,0.7786944]
[1758098839689,0.17135768,116880.0,116860.0,0.5039744]
[1758098839872,0.16705768,116880.0,116860.0,0.47827154]
[1758098840084,0.17113031,116870.0,116860.0,0.30712659]
[1758098840293,0.17113031,116870.0,116860.0,0.44592495]
[1758098840926,0.17113031,116870.0,116860.0,0.02580158]
[1758098841182,0.19066597,116870.0,116860.0,0.02580158]
[1758098841394,0.19066597,116870.0,116860.0,0.30048158]
[1758098841600,0.19066597,116870.0,116860.0,0.02580158]
[1758098841814,0.19066597,116870.0,116860.0,0.30048158]
[1758098842018,0.19066597,116870.0,116860.0,0.02580158]
[1758098842223,0.19066597,116870.0,116860.0,0.30048158]
[1758098850939,0.19066597,116870.0,116860.0,0.02580158]
[1758098851168,0.19066597,116870.0,116860.0,0.0001]
[1758098851169,0.49769256,116870.0,116860.0,0.0001]
[1758098851372,0.4781569,116870.0,116860.0,0.26842]
[1758098851593,0.17113031,116870.0,116860.0,0.26842]
[1758098851826,0.49769256,116870.0,116860.0,0.26842]
[1758098852074,0.4781569,116870.0,116860.0,0.0001]
[1758098852295,0.4781569,116870.0,116860.0,0.27466]
[1758098852974,0.4782569,116870.0,116860.0,0.27466]
[1758098853401,0.4782569,116870.0,116860.0,0.0001]
[1758098853786,0.4782569,116870.0,116860.0,0.27466]
[1758098854411,0.17123031,116870.0,116860.0,0.27466]
[1758098854629,0.19076597,116870.0,116860.0,0.27466]
[1758098854841,0.19076597,116870.0,116860.0,0.0001]
[1758098855043,0.19076597,116870.0,116860.0,0.27462]
[1758098855964,0.19076597,116870.0,116860.0,0.0001]
[1758098856202,0.19076597,116870.0,116860.0,0.27462]
[1758098856418,0.56352657,116870.0,116860.0,0.0001]
[1758098856557,0.56352657,116870.0,116860.0,0.27462]
[1758098857388,0.58923414,116870.0,116860.0,0.27462]
[1758098858277,0.58923414,116870.0,116860.0,0.0001]
[1758098858428,0.58923414,116870.0,116860.0,0.27462]
[1758098858631,0.58923414,116870.0,116860.0,0.27452]
[1758098867851,0.17114495,116860.0,116850.0,0.0001]
[1758098868057,0.19068061,116860.0,116850.0,0.27454]
[1758098868856,0.19078061,116860.0,116850.0,0.27454]
[1758098869205,0.19078061,116860.0,116850.0,0.27654]
[1758098869870,0.53614435,116860.0,116850.0,0.27654]
[1758098870081,0.51660869,116860.0,116850.0,0.27654]
[1758098870234,0.17124495,116860.0,116850.0,0.27654]
[1758098870430,0.53614435,116860.0,116850.0,0.27654]
[1758098870639,0.51660869,116860.0,116850.0,0.2765]
[1758098872631,0.51660869,116860.0,116850.0,0.0021]
[1758098872839,0.17124495,116860.0,116850.0,0.27646]
[1758098873044,0.53614435,116860.0,116850.0,0.27646]
[1758098873180,0.51660869,116860.0,116850.0,0.27646]
[1758098874165,0.51660869,116860.0,116850.0,0.0021]
[1758098874321,0.17124495,116860.0,116850.0,0.27646]
[1758098874558,0.53614435,116860.0,116850.0,0.27646]
[1758098874767,0.51660869,116860.0,116850.0,0.27646]
[1758098876429,0.17124495,116860.0,116850.0,0.27646]
[1758098876635,0.19078061,116860.0,116850.0,0.27646]
[1758098876881,0.53614435,116860.0,116850.0,0.27646]
[1758098877064,0.51660869,116860.0,116850.0,0.27646]
[1758098877816,0.17124495,116860.0,116850.0,0.27646]
[1758098878014,0.19078061,116860.0,116850.0,0.27646]
[1758098881901,0.53614435,116860.0,116850.0,0.27646]
[1758098882089,0.51660869,116860.0,116850.0,0.27646]
[1758098882296,0.17124495,116860.0,116850.0,0.27646]
[1758098882513,0.19078061,116860.0,116850.0,0.27646]
[1758098882709,0.19078061,116860.0,116850.0,0.62182374]
[1758098883486,0.17124495,116860.0,116850.0,0.79298334]
[1758098883966,0.0001,116860.0,116850.0,1.13834708]
[1758098884306,0.0001,116860.0,116850.0,1.16405251]
[1758098884772,0.0001,116860.0,116850.0,0.19896503]
[1758098884992,0.0001,116860.0,116850.0,0.81856877]
[1758098885454,0.17124495,116860.0,116850.0,0.54432877]
[1758098885579,0.17124495,116860.0,116850.0,0.81856877]
[1758098887258,0.0001,116860.0,116850.0,1.16393251]
[1758098887482,0.0001,116860.0,116850.0,1.58920218]
[1758098888176,0.0001,116870.0,116850.0,1.69679845]
[1758098888406,0.0001,116870.0,116860.0,0.95889285]
[1758098888658,0.00024046,116880.0,116870.0,0.17113031]
[1758098888920,0.00024046,116880.0,116870.0,0.80780708]
[1758098889140,0.00024046,116880.0,116870.0,1.56132746]
[1758098889359,0.00024046,116880.0,116870.0,1.58381912]
[1758098889616,0.00024046,116880.0,116870.0,1.28712746]
[1758098890041,0.00024046,116880.0,116870.0,1.56128746]
[1758098890254,0.00024046,116880.0,116870.0,1.62546772]
[1758098890472,0.00114046,116880.0,116870.0,1.62546772]
[1758098890884,0.00014046,116880.0,116870.0,1.62546772]
[1758098891334,0.00014046,116880.0,116870.0,0.66058024]
[1758098891592,0.00014046,116880.0,116870.0,1.00594398]
[1758098891801,0.00014046,116880.0,116870.0,0.93474024]
[1758098892011,0.00014046,116880.0,116870.0,1.28010398]
[1758098892186,0.00014046,116880.0,116870.0,1.28210398]
[1758098892569,0.00014046,116880.0,116870.0,1.28310398]
[1758098893180,0.00014046,116880.0,116870.0,0.66358024]
[1758098893388,0.00014046,116880.0,116870.0,1.28306398]
[1758098894151,0.00014046,116880.0,116870.0,1.28316398]
[1758098894358,0.00014046,116880.0,116870.0,1.30886135]
[1758098896186,0.00014046,116880.0,116870.0,1.30882135]
[1758098899941,0.00014046,116880.0,116870.0,0.96345761]
[1758098900148,0.00014046,116880.0,116870.0,1.30882135]
[1758098903280,0.00014046,116880.0,116870.0,1.24464109]
[1758098904921,0.00014046,116880.0,116870.0,1.59000483]
[1758098907124,0.00014046,116880.0,116870.0,1.21894372]
[1758098908597,0.00014046,116880.0,116870.0,1.21878372]
[1758098908843,0.00014046,116880.0,116870.0,0.85959405]
[1758098909095,0.00014046,116880.0,116870.0,1.13351405]
[1758098909291,0.51661987,116880.0,116870.0,0.0031]
[1758098909528,0.17125613,116880.0,116870.0,0.27702]
[1758098910194,0.17125613,116880.0,116870.0,0.62238374]
[1758098910599,0.17125613,116880.0,116870.0,0.34846374]
[1758098910814,0.53615553,116880.0,116870.0,0.27698]
[1758098911040,0.17125613,116880.0,116870.0,0.27698]
[1758098911256,0.19079179,116880.0,116870.0,0.27698]
[1758098911457,0.19079179,116880.0,116870.0,0.62234374]
[1758098911663,0.19079179,116880.0,116870.0,0.27698]
[1758098912545,0.19079179,116880.0,116870.0,0.62234374]
[1758098913328,0.19079179,116880.0,116870.0,0.27698]
[1758098917438,0.19079179,116880.0,116870.0,0.0031]
[1758098917646,0.19079179,116880.0,116870.0,0.27694]
[1758098917856,0.19079179,116880.0,116870.0,0.62230374]
[1758098918481,0.19079179,116880.0,116870.0,0.34846374]
[1758098918648,0.19079179,116880.0,116870.0,0.62230374]
[1758098920219,0.19079179,116880.0,116870.0,0.79343405]
[1758098920416,0.19079179,116880.0,116870.0,0.62230374]
[1758098921321,0.19079179,116880.0,116870.0,0.27694]
[1758098921497,0.19079179,116880.0,116870.0,0.62230374]
[1758098921715,0.19079179,116880.0,116870.0,0.79343405]
[1758098921716,0.00014046,116880.0,116870.0,0.79343405]
[1758098921925,0.17125613,116880.0,116870.0,0.44803031]
[1758098922131,0.19079179,116880.0,116870.0,0.79339405]
[1758098922336,0.17125613,116880.0,116870.0,0.79339405]
[1758098923923,0.17125613,116880.0,116870.0,0.44803031]
[1758098924134,0.17125613,116880.0,116870.0,0.79339405]
[1758098924581,0.19079179,116880.0,116870.0,0.79339405]
[1758098924807,0.19079179,116880.0,116870.0,0.62226374]
[1758098925221,0.19079179,116880.0,116870.0,0.79339405]
[1758098928965,0.00014046,116880.0,116870.0,0.79339405]
[1758098929153,0.17125613,116880.0,116870.0,0.79339405]
[1758098931405,0.00014046,116880.0,116870.0,0.79339405]
[1758098931567,0.17125613,116880.0,116870.0,0.79339405]
[1758098931771,0.17125613,116880.0,116870.0,0.75485135]
[1758098932193,0.19079179,116880.0,116870.0,0.0031]
[1758098932529,0.19079179,116880.0,116870.0,0.27682]
[1758098933307,0.19079179,116880.0,116870.0,0.44795031]
[1758098934134,0.01967612,116880.0,116870.0,0.75477135]
[1758098934288,0.19079179,116880.0,116870.0,0.75477135]
[1758098934712,0.01967612,116880.0,116870.0,0.75477135]
[1758098935194,0.00014046,116880.0,116870.0,0.75477135]
[1758098936645,0.00014046,116880.0,116870.0,0.84004102]
[1758098937290,0.00014046,116880.0,116870.0,1.18004102]
[1758098937734,0.00014046,116880.0,116870.0,1.28763729]
[1758098937938,0.00014046,116880.0,116870.0,1.2910636]
[1758098938160,0.00014046,116880.0,116870.0,1.2909836]
[1758098939463,0.00014046,116880.0,116870.0,1.0173436]
[1758098939704,0.00014046,116880.0,116870.0,1.2909836]
[1758098939925,0.00014046,116880.0,116870.0,1.0173436]
[1758098940199,0.00014046,116880.0,116870.0,1.2909436]
[1758098940419,0.00014046,116880.0,116870.0,1.0173436]
[1758098940852,0.00014046,116880.0,116870.0,1.2909436]
[1758098941082,0.00014046,116880.0,116870.0,1.35666496]
[1758098942003,0.00014046,116880.0,116870.0,1.663486]
[1758098942206,0.00014046,116880.0,116870.0,1.389886]
[1758098942435,0.00014046,116880.0,116870.0,0.77624392]
[1758098942585,0.00014046,116880.0,116870.0,0.11412258]
[1758098942819,0.00014046,116880.0,116870.0,0.55542658]
[1758098943021,0.00014046,116880.0,116870.0,0.44783031]
[1758098943229,0.17125613,116880.0,116870.0,0.48105135]
[1758098943445,0.17125613,116880.0,116870.0,0.75465135]
[1758098943645,0.17125613,116880.0,116870.0,0.17423031]
[1758098943843,0.19079179,116880.0,116870.0,0.27666]
[1758098944044,0.17125613,116880.0,116870.0,0.27666]
[1758098944433,0.17125613,116880.0,116870.0,0.44779031]
[1758098945131,0.00014046,116880.0,116870.0,0.75461135]
[1758098945487,0.17125613,116880.0,116870.0,0.44779031]
[1758098946505,0.17125613,116880.0,116870.0,0.0031]
[1758098946767,0.17125613,116880.0,116870.0,0.27666]
[1758098946968,0.17125613,116880.0,116870.0,0.44779031]
[1758098947481,0.00014046,116880.0,116870.0,0.44779031]
[1758098947699,0.00014046,116880.0,116870.0,0.75461135]
[1758098947906,0.17125613,116880.0,116870.0,0.48105135]
[1758098948035,0.17125613,116880.0,116870.0,0.75461135]
[1758098948449,0.17125613,116880.0,116870.0,0.44779031]
[1758098949775,0.17125613,116880.0,116870.0,0.75461135]
[1758098951775,0.00014046,116880.0,116870.0,0.75461135]
[1758098952589,0.17125613,116880.0,116870.0,0.75461135]
[1758098953419,0.17125613,116880.0,116870.0,0.48105135]
[1758098953658,0.17125613,116880.0,116870.0,0.0031]
[1758098953861,0.17125613,116880.0,116870.0,0.27658]
[1758098954221,0.19079179,116880.0,116870.0,0.27658]
[1758098954525,0.17125613,116880.0,116870.0,0.44771031]
[1758098954739,0.19079179,116880.0,116870.0,0.27658]
[1758098954906,0.17125613,116880.0,116870.0,0.44771031]
[1758098955728,0.00014046,116880.0,116870.0,0.44771031]
[1758098955931,0.00014046,116880.0,116870.0,0.75453135]
[1758098957050,0.17125613,116880.0,116870.0,0.75453135]
[1758098959088,0.00014046,116880.0,116870.0,0.75453135]
[1758098959334,0.00014046,116880.0,116870.0,0.48105135]
[1758098959542,0.00014046,116880.0,116870.0,0.75449135]
[1758098959869,0.17125613,116880.0,116870.0,0.48105135]
[1758098960089,0.17125613,116880.0,116870.0,0.75449135]
[1758098960882,0.19079179,116880.0,116870.0,0.75449135]
[1758098961087,0.17125613,116880.0,116870.0,0.75449135]
[1758098964154,0.00014046,116880.0,116870.0,0.75449135]
[1758098964611,0.17125613,116880.0,116870.0,0.75449135]
[1758098964975,0.00014046,116880.0,116870.0,0.75449135]
[1758098965635,0.17125613,116880.0,116870.0,0.75445135]
[1758098968488,0.00014046,116880.0,116870.0,0.75445135]
[1758098972607,0.00014046,116880.0,116870.0,0.48105135]
[1758098972822,0.00014046,116880.0,116870.0,0.75437135]
[1758098972823,0.17125613,116880.0,116870.0,0.75437135]
[1758098974269,0.00014046,116880.0,116870.0,0.75437135]
[1758098979255,0.00014046,116880.0,116870.0,0.44755031]
[1758098979482,0.00014046,116880.0,116870.0,0.75437135]
[1758098979920,0.00014046,116880.0,116870.0,0.48105135]
[1758098980090,0.00014046,116880.0,116870.0,0.44747031]
[1758098980298,0.00014046,116880.0,116870.0,0.75429135]
[1758098991280,0.00014046,116880.0,116870.0,0.47000197]
[1758098991495,0.17125613,116880.0,116870.0,0.44739031]
[1758098991703,0.17125613,116880.0,116870.0,0.75421135]
[1758098992302,0.17125613,116880.0,116870.0,0.48105135]
[1758098992503,0.17125613,116880.0,116870.0,0.75421135]
[1758098992745,0.17125613,116880.0,116870.0,0.48105135]
[1758098992961,0.17125613,116880.0,116870.0,0.75421135]
[1758098994034,0.17125613,116880.0,116870.0,0.79254007]
[1758098996217,0.17125613,116880.0,116870.0,0.51938007]
[1758098996426,0.17125613,116880.0,116870.0,0.79250007]
[1758098999265,0.17125613,116880.0,116870.0,0.51938007]
[1758098999446,0.17125613,116880.0,116870.0,0.79250007]
[1758099001474,0.00014046,116880.0,116870.0,0.79250007]
[1758099003750,0.00014046,116880.0,116870.0,1.13764983]
[1758099004346,0.00014046,116880.0,116870.0,0.79250007]
[1758099006246,0.17125613,116880.0,116870.0,0.79242007]
[1758099008744,0.17125613,116880.0,116870.0,0.44727031]
[1758099008870,0.17125613,116880.0,116870.0,0.79242007]
[1758099010392,0.17125613,116880.0,116870.0,0.37395142]
[1758099010685,0.17125613,116880.0,116870.0,0.81808173]
[1758099011471,0.00014046,116880.0,116870.0,0.81808173]
[1758099012698,0.00014046,116880.0,116870.0,0.54508173]
[1758099012897,0.17125613,116880.0,116870.0,0.81804173]
[1758099014127,0.17125613,116880.0,116870.0,0.47289197]
[1758099014333,0.17125613,116880.0,116870.0,0.81804173]
[1758099016187,0.17125613,116880.0,116870.0,0.64691142]
[1758099016743,0.17125613,116880.0,116870.0,0.81804173]
[1758099024419,0.00014046,116880.0,116870.0,0.81804173]
[1758099024626,0.17125613,116880.0,116870.0,0.81804173]
[1758099025672,0.17125613,116880.0,116870.0,0.30168166]
[1758099025878,0.17125613,116880.0,116870.0,0.64683142]
[1758099026344,0.17125613,116880.0,116870.0,0.64679142]
[1758099027290,0.17125613,116880.0,116870.0,0.30164166]
[1758099027492,0.17125613,116880.0,116870.0,0.64679142]
[1758099027700,0.17125613,116880.0,116870.0,0.47277197]
[1758099027943,0.17125613,116880.0,116870.0,0.81792173]
[1758099028145,0.17125613,116880.0,116870.0,0.64679142]
[1758099030417,0.17125613,116880.0,116870.0,0.37395142]
[1758099030634,0.17125613,116880.0,116870.0,0.64675142]
[1758099031668,0.17125613,116880.0,116870.0,0.30160166]
[1758099031870,0.17125613,116880.0,116870.0,0.64675142]
[1758099032082,0.17125613,116880.0,116870.0,0.81788173]
[1758099035648,0.17125613,116880.0,116870.0,0.81784173]
[1758099036786,0.17125613,116880.0,116870.0,0.81780173]
[1758099041624,0.00014046,116880.0,116870.0,0.81780173]
[1758099042156,0.00014046,116880.0,116870.0,1.16295149]
[1758099042821,0.17125613,116880.0,116870.0,0.89023149]
[1758099043010,0.17125613,116880.0,116870.0,0.81776173]
[1758099045141,0.00014046,116880.0,116870.0,0.81776173]
[1758099045549,0.17125613,116880.0,116870.0,0.81776173]
[1758099054214,0.17125613,116880.0,116870.0,0.47261197]
[1758099054372,0.17125613,116880.0,116870.0,0.81776173]
[1758099055725,0.17125613,116880.0,116870.0,0.77939866]
[1758099057054,0.00014046,116880.0,116870.0,0.77939866]
[1758099059899,0.17125613,116880.0,116870.0,0.77939866]
[1758099067177,0.17125613,116880.0,116870.0,0.77509866]
[1758099068869,0.17125613,116880.0,116870.0,0.77519866]
[1758099071567,0.00014046,116880.0,116870.0,0.77519866]
[1758099072995,0.00014046,116880.0,116870.0,1.16725502]
[1758099073215,0.00014046,116880.0,116870.0,1.50725502]
[1758099073439,0.00014046,116880.0,116870.0,1.61485129]
[1758099074736,0.00014046,116880.0,116870.0,1.63738295]
[1758099075004,0.00014046,116880.0,116870.0,1.92938668]
[1758099075265,0.00014046,116880.0,116870.0,1.87938668]
[1758099075549,0.00014046,116880.0,116870.0,1.87886005]
[1758099075788,0.00014046,116880.0,116870.0,1.87882005]
[1758099076061,0.00014046,116880.0,116870.0,1.92882005]
[1758099076355,0.00014046,116880.0,116870.0,1.99460562]
[1758099077685,0.00014046,116880.0,116870.0,2.39456562]
[1758099077904,0.00014046,116880.0,116870.0,2.34456562]
[1758099078145,0.00014046,116880.0,116870.0,2.39456562]
[1758099080320,0.00014046,116880.0,116870.0,2.66036562]
[1758099080536,0.00014046,116880.0,116870.0,2.38816562]
[1758099080695,0.00014046,116880.0,116870.0,2.66032562]
[1758099081308,0.00014046,116880.0,116870.0,2.76773466]
[1758099081585,0.0001,116920.0,116910.0,0.17107176]
[1758099081704,0.00024054,116920.0,116910.0,1.07391231]
[1758099081907,0.00024054,116920.0,116910.0,1.05680514]
[1758099082138,0.00024054,116920.0,116910.0,1.12464514]
[1758099082373,0.00024054,116920.0,116910.0,1.42245441]
[1758099082610,0.00014054,116920.0,116910.0,1.42255441]
[1758099082814,0.00214054,116920.0,116910.0,1.42255441]
[1758099083017,0.00214054,116920.0,116910.0,0.84364772]
[1758099083018,0.00014054,116920.0,116910.0,0.84364772]
[1758099083227,0.00014054,116920.0,116910.0,1.12443495]
[1758099083435,0.00014054,116920.0,116910.0,0.85231495]
[1758099083665,0.00014054,116920.0,116910.0,1.12443495]
[1758099084519,0.00214054,116920.0,116910.0,1.12443495]
[1758099084738,0.17319767,116920.0,116910.0,0.85231495]
[1758099084952,0.17319767,116920.0,116910.0,0.68124319]
[1758099085170,0.17119767,116920.0,116910.0,0.95332319]
[1758099085390,0.17119767,116920.0,116910.0,1.12439495]
[1758099085587,0.17219767,116920.0,116910.0,0.85231495]
[1758099086048,0.17219767,116920.0,116910.0,0.60465596]
[1758099086287,0.17319767,116920.0,116910.0,0.02578927]
[1758099086498,0.17119767,116920.0,116910.0,0.0001]
[1758099086705,0.19173333,116920.0,116910.0,0.25138]
[1758099086907,0.21742797,116920.0,116910.0,0.25138]
[1758099087140,0.19799231,116920.0,116910.0,0.25138]
[1758099088000,0.19899231,116920.0,116910.0,0.25138]
[1758099088837,0.19899231,116920.0,116910.0,0.27214]
[1758099092051,0.19899231,116920.0,116910.0,0.57892669]
[1758099092950,0.02793518,116920.0,116910.0,0.74999845]
[1758099093618,0.00224054,116920.0,116910.0,0.77569187]
[1758099094298,0.17329767,116920.0,116910.0,0.77561187]
[1758099094500,0.00224054,116920.0,116910.0,0.77561187]
[1758099097113,0.00224054,116920.0,116910.0,0.46878518]
[1758099097337,0.17329767,116920.0,116910.0,0.77557187]
[1758099098268,0.00224054,116920.0,116910.0,0.77557187]
[1758099099218,0.17329767,116920.0,116910.0,0.77557187]
[1758099099460,0.00224054,116920.0,116910.0,0.77557187]
[1758099101426,0.17329767,116920.0,116910.0,0.77557187]
[1758099101654,0.17329767,116920.0,116910.0,0.77553187]
[1758099101877,0.00224054,116920.0,116910.0,0.77553187]
[1758099110562,0.00224054,116920.0,116910.0,1.44620554]
[1758099111026,0.00214054,116920.0,116910.0,1.44620554]
[1758099111786,0.00114054,116920.0,116910.0,1.44620554]
[1758099111986,0.00214054,116920.0,116910.0,1.13941885]
[1758099112591,0.00114054,116920.0,116910.0,1.13941885]
[1758099112809,0.00214054,116920.0,116910.0,1.44620554]
[1758099113453,0.00014054,116920.0,116910.0,1.44620554]
[1758099115860,0.00014054,116920.0,116910.0,1.5222579]
[1758099116550,0.00014054,116920.0,116910.0,1.2503779]
[1758099116752,0.00014054,116920.0,116910.0,2.19405346]
[1758099116951,0.00014054,116920.0,116910.0,1.92825346]
[1758099117384,0.00014054,116920.0,116910.0,2.19405346]
[1758099117587,0.00014054,116920.0,116910.0,2.21794044]
[1758099118002,0.00014054,116920.0,116910.0,1.94626044]
[1758099118200,0.00014054,116920.0,116910.0,1.57756059]
[1758099118719,0.00014054,116920.0,116910.0,1.84920059]
[1758099121399,0.00014054,116920.0,116910.0,1.57756059]
[1758099121804,0.00014054,116920.0,116910.0,1.58336059]
[1758099124897,0.00014054,116920.0,116910.0,1.31176059]
[1758099125118,0.00014054,116920.0,116910.0,1.58332059]
[1758099126134,0.00014054,116920.0,116910.0,1.31176059]
[1758099126368,0.17119767,116920.0,116910.0,0.36579342]
[1758099126619,0.51601054,116920.0,116910.0,0.27162]
[1758099126843,0.51601054,116920.0,116910.0,0.0001]
[1758099126844,0.69030874,116920.0,116910.0,0.0001]
[1758099127728,0.65712553,116920.0,116910.0,0.0001]
[1758099128185,0.65912553,116920.0,116910.0,0.0001]
[1758099129693,0.65722553,116920.0,116910.0,0.0001]
[1758099129912,0.28226076,116920.0,116910.0,0.0001]
[1758099130139,0.28426076,116920.0,116910.0,0.0001]
[1758099130359,0.25856734,116920.0,116910.0,0.0001]
[1758099130803,0.25856734,116920.0,116900.0,0.78741853]
[1758099131022,0.17107176,116910.0,116900.0,0.78741853]
[1758099131925,0.17117176,116910.0,116900.0,0.61633287]
[1758099132757,0.17317176,116910.0,116900.0,0.61633287]
[1758099133345,0.17317176,116910.0,116900.0,0.27162]
[1758099133563,0.17317176,116910.0,116900.0,0.78751926]
[1758099134517,0.0021,116910.0,116900.0,0.78751926]
[1758099136133,0.0001,116910.0,116900.0,0.78751926]
[1758099136625,0.0011,116910.0,116900.0,0.78751926]
[1758099137337,0.0011,116910.0,116900.0,0.17118639]
[1758099137476,0.17317176,116910.0,116900.0,0.61635287]
[1758099137678,0.17317176,116910.0,116900.0,0.78743926]
[1758099137861,0.17317176,116910.0,116900.0,0.51599926]
[1758099138267,0.17317176,116910.0,116900.0,0.44262639]
[1758099138472,0.17317176,116910.0,116900.0,0.78743926]
[1758099139651,0.0021,116910.0,116900.0,0.78743926]
[1758099140848,0.17317176,116910.0,116900.0,0.44262639]
[1758099141069,0.17317176,116910.0,116900.0,0.78743926]
[1758099141223,0.17317176,116910.0,116900.0,0.44262639]
[1758099141442,0.0021,116910.0,116900.0,0.78743926]
[1758099142051,0.002,116910.0,116900.0,0.78743926]
[1758099143113,0.17307176,116910.0,116900.0,0.44258639]
[1758099143414,0.17307176,116910.0,116900.0,0.78739926]
[1758099145298,0.002,116910.0,116900.0,0.78739926]
[1758099149676,0.002,116910.0,116900.0,0.51599926]
[1758099149890,0.002,116910.0,116900.0,0.78731926]
[1758099158234,0.002,116910.0,116900.0,0.85086677]
[1758099159670,0.17307176,116910.0,116900.0,0.57954677]
[1758099159901,0.17307176,116910.0,116900.0,0.34491287]
[1758099160115,0.17307176,116910.0,116900.0,0.61615287]
[1758099162984,0.17307176,116910.0,116900.0,0.34491287]
[1758099163130,0.17307176,116910.0,116900.0,0.61611287]
[1758099163526,0.17307176,116910.0,116900.0,0.34491287]
[1758099163776,0.17307176,116910.0,116900.0,0.61611287]
[1758099165141,0.17307176,116910.0,116900.0,0.61607287]
[1758099166103,0.17307176,116910.0,116900.0,0.78715926]
[1758099169673,0.17307176,116910.0,116900.0,0.34491287]
[1758099169880,0.17307176,116910.0,116900.0,0.78711926]
[1758099172466,0.17307176,116910.0,116900.0,0.61599287]
[1758099172677,0.17307176,116910.0,116900.0,0.78707926]
[1758099173049,0.17307176,116910.0,116900.0,0.34491287]
[1758099173280,0.17307176,116910.0,116900.0,0.61599287]
[1758099174267,0.17307176,116910.0,116900.0,0.44226639]
[1758099174464,0.17307176,116910.0,116900.0,0.78707926]
[1758099177006,0.17307176,116910.0,116900.0,0.61599287]
[1758099177596,0.17307176,116910.0,116900.0,0.78703926]